[Event "Titled Tuesday Blitz February 07 Early 2023"]
[White "Martynov, Pavel"]
[Black "Aarav Dengla"]
[WhiteFideId "4101260"]
[BlackFideId "45059756"]
[WhiteElo "2414"]
[BlackElo "2343"]
[Result "1/2-1/2"]
[Round "08"]
[TimeControl "180+2"]
[Date "2023.02.07"]
[WhiteClock "0:00:58"]
[BlackClock "0:01:33"]

1. e4 {[%clk 0:03:00]}  c5 {[%clk 0:02:59]} 2. Nf3 {[%clk 0:03:01]}  d6 {[%clk 0:02:59]} 3. Bb5+ {[%clk 0:03:01]}  Nd7 {[%clk 0:02:58]} 4. O-O {[%clk 0:03:00]}  a6 {[%clk 0:02:58]} 5. Bxd7+ {[%clk 0:03:00]}  Bxd7 {[%clk 0:02:58]} 6. c3 {[%clk 0:03:01]}  Nf6 {[%clk 0:02:58]} 7. Re1 {[%clk 0:03:01]}  e6 {[%clk 0:02:58]} 8. d4 {[%clk 0:03:01]}  cxd4 {[%clk 0:02:59]} 9. cxd4 {[%clk 0:03:02]}  Be7 {[%clk 0:02:56]} 10. Nc3 {[%clk 0:02:57]}  O-O {[%clk 0:02:50]} 11. e5 {[%clk 0:02:45]}  Nd5 {[%clk 0:02:48]} 12. Nxd5 {[%clk 0:02:45]}  exd5 {[%clk 0:02:49]} 13. Qb3 {[%clk 0:02:45]}  Bc6 {[%clk 0:02:45]} 14. Bf4 {[%clk 0:02:44]}  dxe5 {[%clk 0:02:43]} 15. Nxe5 {[%clk 0:02:43]}  Bd6 {[%clk 0:02:41]} 16. Rac1 {[%clk 0:02:34]}  Rc8 {[%clk 0:02:28]} 17. Qg3 {[%clk 0:02:18]}  Bxe5 {[%clk 0:02:26]} 18. Bxe5 {[%clk 0:02:15]}  f6 {[%clk 0:02:25]} 19. Bd6 {[%clk 0:02:12]}  Re8 {[%clk 0:02:23]} 20. h4 {[%clk 0:02:13]}  Qd7 {[%clk 0:02:23]} 21. h5 {[%clk 0:02:07]}  Qf5 {[%clk 0:02:03]} 22. h6 {[%clk 0:02:03]}  Qg6 {[%clk 0:02:02]} 23. hxg7 {[%clk 0:01:28]}  Qxg3 {[%clk 0:01:59]} 24. Bxg3 {[%clk 0:01:29]}  Kxg7 {[%clk 0:01:59]} 25. f3 {[%clk 0:01:24]}  Kg6 {[%clk 0:01:56]} 26. Kf2 {[%clk 0:01:24]}  h5 {[%clk 0:01:48]} 27. Bd6 {[%clk 0:01:06]}  Kf5 {[%clk 0:01:38]} 28. Rh1 {[%clk 0:01:02]}  Kg6 {[%clk 0:01:38]} 29. Rhe1 {[%clk 0:00:58]}  Kf5 {[%clk 0:01:33]} 30. Rh1 {[%clk 0:00:58]}  Kg6 {[%clk 0:01:33]} 31. Rhe1 {[%clk 0:00:58]} 1/2-1/2


[Site "https://www.chess.com"]

[Event "Titled Tuesday Blitz February 07 Early 2023"]
[White "Khamdamova, Afruza"]
[Black "Sanchez, Sebastian Felipe"]
[WhiteFideId "14210444"]
[BlackFideId "4403304"]
[WhiteElo "2162"]
[BlackElo "2427"]
[Result "0-1"]
[Round "08"]
[TimeControl "180+2"]
[Date "2023.02.07"]
[WhiteClock "0:00:01"]
[BlackClock "0:00:11"]

1. e4 {[%clk 0:03:00]}  e6 {[%clk 0:02:59]} 2. d4 {[%clk 0:03:01]}  d5 {[%clk 0:02:58]} 3. Nd2 {[%clk 0:03:01]}  Nf6 {[%clk 0:02:57]} 4. e5 {[%clk 0:03:00]}  Nfd7 {[%clk 0:02:58]} 5. Bd3 {[%clk 0:02:58]}  c5 {[%clk 0:02:59]} 6. c3 {[%clk 0:02:59]}  Nc6 {[%clk 0:02:59]} 7. Ne2 {[%clk 0:02:59]}  cxd4 {[%clk 0:02:59]} 8. cxd4 {[%clk 0:02:59]}  f6 {[%clk 0:03:00]} 9. exf6 {[%clk 0:02:56]}  Nxf6 {[%clk 0:03:01]} 10. Nf3 {[%clk 0:02:55]}  Bd6 {[%clk 0:03:01]} 11. O-O {[%clk 0:02:55]}  Qc7 {[%clk 0:03:02]} 12. Bg5 {[%clk 0:02:47]}  O-O {[%clk 0:03:01]} 13. Rc1 {[%clk 0:02:41]}  Ng4 {[%clk 0:02:53]} 14. Ng3 {[%clk 0:02:28]}  h6 {[%clk 0:02:13]} 15. Bd2 {[%clk 0:02:22]}  Bd7 {[%clk 0:02:05]} 16. Nh4 {[%clk 0:02:11]}  Nxh2 {[%clk 0:01:33]} 17. Kxh2 {[%clk 0:02:01]}  Rxf2 {[%clk 0:01:33]} 18. Rxf2 {[%clk 0:01:33]}  Bxg3+ {[%clk 0:01:33]} 19. Kg1 {[%clk 0:01:33]}  Bxh4 {[%clk 0:01:24]} 20. Rf1 {[%clk 0:00:46]}  Qb6 {[%clk 0:01:17]} 21. Be3 {[%clk 0:00:44]}  Bg5 {[%clk 0:01:15]} 22. Bxg5 {[%clk 0:00:40]}  hxg5 {[%clk 0:01:05]} 23. Qf3 {[%clk 0:00:25]}  Qxd4+ {[%clk 0:01:02]} 24. Rf2 {[%clk 0:00:25]}  Ne5 {[%clk 0:01:00]} 25. Qh5 {[%clk 0:00:07]}  Qxf2+ {[%clk 0:00:29]} 26. Kxf2 {[%clk 0:00:05]}  Nxd3+ {[%clk 0:00:29]} 27. Ke3 {[%clk 0:00:05]}  Nxc1 {[%clk 0:00:30]} 28. Kd2 {[%clk 0:00:04]}  Rc8 {[%clk 0:00:30]} 29. Qxg5 {[%clk 0:00:03]}  Kf7 {[%clk 0:00:19]} 30. Qf4+ {[%clk 0:00:04]}  Ke8 {[%clk 0:00:19]} 31. Qg5 {[%clk 0:00:04]}  Nxa2 {[%clk 0:00:18]} 32. Qxg7 {[%clk 0:00:04]}  Nb4 {[%clk 0:00:15]} 33. Qg8+ {[%clk 0:00:04]}  Ke7 {[%clk 0:00:15]} 34. Qg7+ {[%clk 0:00:05]}  Kd6 {[%clk 0:00:14]} 35. Qd4 {[%clk 0:00:04]}  Nc6 {[%clk 0:00:13]} 36. Qf4+ {[%clk 0:00:04]}  e5 {[%clk 0:00:13]} 37. Qf6+ {[%clk 0:00:04]}  Be6 {[%clk 0:00:14]} 38. g4 {[%clk 0:00:04]}  Rg8 {[%clk 0:00:14]} 39. g5 {[%clk 0:00:04]}  Ne7 {[%clk 0:00:14]} 40. Ke3 {[%clk 0:00:03]}  Rg6 {[%clk 0:00:12]} 41. Qf8 {[%clk 0:00:03]}  Rxg5 {[%clk 0:00:12]} 42. Qd8+ {[%clk 0:00:03]}  Bd7 {[%clk 0:00:12]} 43. Qb8+ {[%clk 0:00:03]}  Ke6 {[%clk 0:00:12]} 44. Qxb7 {[%clk 0:00:02]}  Nc6 {[%clk 0:00:11]} 45. Qb3 {[%clk 0:00:01]}  Rg3+ {[%clk 0:00:11]} 0-1


[Site "https://www.chess.com"]

[Event "Titled Tuesday Blitz February 07 Early 2023"]
[White "Yaran, Siar"]
[Black "Minko, Dmitry"]
[WhiteFideId "6323006"]
[BlackFideId "24188468"]
[WhiteElo "2288"]
[BlackElo "2247"]
[Result "1-0"]
[Round "08"]
[TimeControl "180+2"]
[Date "2023.02.07"]
[WhiteClock "0:00:32"]
[BlackClock "0:00:04"]

1. d4 {[%clk 0:02:53]}  d5 {[%clk 0:02:59]} 2. c4 {[%clk 0:02:53]}  e6 {[%clk 0:03:00]} 3. Nc3 {[%clk 0:02:53]}  Be7 {[%clk 0:03:00]} 4. Nf3 {[%clk 0:02:51]}  Nf6 {[%clk 0:03:01]} 5. Bg5 {[%clk 0:02:51]}  O-O {[%clk 0:03:01]} 6. e3 {[%clk 0:02:49]}  Nbd7 {[%clk 0:02:58]} 7. Qc2 {[%clk 0:02:49]}  a6 {[%clk 0:02:56]} 8. cxd5 {[%clk 0:02:48]}  exd5 {[%clk 0:02:55]} 9. Bd3 {[%clk 0:02:48]}  c6 {[%clk 0:02:53]} 10. O-O {[%clk 0:02:43]}  Re8 {[%clk 0:02:53]} 11. Ne5 {[%clk 0:02:41]}  h6 {[%clk 0:02:35]} 12. Bh4 {[%clk 0:02:21]}  Nxe5 {[%clk 0:02:22]} 13. dxe5 {[%clk 0:02:13]}  Ng4 {[%clk 0:02:21]} 14. Bg3 {[%clk 0:01:57]}  Bf8 {[%clk 0:02:20]} 15. f4 {[%clk 0:01:38]}  Nxe3 {[%clk 0:02:16]} 16. Qe2 {[%clk 0:01:38]}  Nxf1 {[%clk 0:02:16]} 17. Rxf1 {[%clk 0:01:39]}  c5 {[%clk 0:01:34]} 18. Bb1 {[%clk 0:01:04]}  b5 {[%clk 0:00:53]} 19. Qc2 {[%clk 0:01:02]}  g6 {[%clk 0:00:43]} 20. f5 {[%clk 0:01:02]}  Bxf5 {[%clk 0:00:37]} 21. Rxf5 {[%clk 0:01:01]}  gxf5 {[%clk 0:00:37]} 22. Qxf5 {[%clk 0:01:02]}  Bg7 {[%clk 0:00:38]} 23. h4 {[%clk 0:00:47]}  b4 {[%clk 0:00:32]} 24. Ne2 {[%clk 0:00:47]}  Qc8 {[%clk 0:00:24]} 25. Qh7+ {[%clk 0:00:41]}  Kf8 {[%clk 0:00:25]} 26. Bf5 {[%clk 0:00:40]}  Qb7 {[%clk 0:00:18]} 27. Nf4 {[%clk 0:00:40]}  Qb6 {[%clk 0:00:12]} 28. Nh5 {[%clk 0:00:37]}  Bxe5 {[%clk 0:00:07]} 29. Bxe5 {[%clk 0:00:35]}  Rxe5 {[%clk 0:00:06]} 30. Qh8+ {[%clk 0:00:36]}  Ke7 {[%clk 0:00:05]} 31. Qxe5+ {[%clk 0:00:37]}  Kd8 {[%clk 0:00:02]} 32. Qxd5+ {[%clk 0:00:37]}  Kc7 {[%clk 0:00:02]} 33. Qxa8 {[%clk 0:00:37]}  c4+ {[%clk 0:00:03]} 34. Kh1 {[%clk 0:00:36]}  c3 {[%clk 0:00:03]} 35. bxc3 {[%clk 0:00:34]}  bxc3 {[%clk 0:00:04]} 36. Qc8+ {[%clk 0:00:34]}  Kd6 {[%clk 0:00:03]} 37. Qxc3 {[%clk 0:00:33]}  Qb5 {[%clk 0:00:03]} 38. Qd3+ {[%clk 0:00:32]}  Qxd3 {[%clk 0:00:03]} 39. Bxd3 {[%clk 0:00:32]}  Kc5 {[%clk 0:00:04]} 1-0


[Site "https://www.chess.com"]

[Event "Titled Tuesday Blitz February 07 Early 2023"]
[White "Sowul, Bartosz"]
[Black "Karttunen, Mika"]
[WhiteFideId "1137590"]
[BlackFideId "502081"]
[WhiteElo "2269"]
[BlackElo "2490"]
[Result "1-0"]
[Round "08"]
[TimeControl "180+2"]
[Date "2023.02.07"]
[WhiteClock "0:00:12"]
[BlackClock "0:00:07"]

1. e4 {[%clk 0:03:00]}  e5 {[%clk 0:02:57]} 2. Nf3 {[%clk 0:03:01]}  Nc6 {[%clk 0:02:57]} 3. Bb5 {[%clk 0:03:01]}  Nf6 {[%clk 0:02:54]} 4. d3 {[%clk 0:03:00]}  d6 {[%clk 0:02:54]} 5. O-O {[%clk 0:03:00]}  g6 {[%clk 0:02:53]} 6. Re1 {[%clk 0:02:43]}  Bg7 {[%clk 0:02:52]} 7. d4 {[%clk 0:02:36]}  Nd7 {[%clk 0:02:41]} 8. d5 {[%clk 0:02:15]}  Ne7 {[%clk 0:02:38]} 9. c4 {[%clk 0:02:13]}  O-O {[%clk 0:02:35]} 10. Bxd7 {[%clk 0:02:13]}  Bxd7 {[%clk 0:02:33]} 11. Nc3 {[%clk 0:02:11]}  h6 {[%clk 0:02:27]} 12. b4 {[%clk 0:02:02]}  a5 {[%clk 0:02:22]} 13. Rb1 {[%clk 0:01:58]}  axb4 {[%clk 0:02:20]} 14. Rxb4 {[%clk 0:01:59]}  b6 {[%clk 0:02:20]} 15. a4 {[%clk 0:01:57]}  f5 {[%clk 0:02:16]} 16. Nd2 {[%clk 0:01:54]}  f4 {[%clk 0:02:10]} 17. f3 {[%clk 0:01:53]}  g5 {[%clk 0:02:09]} 18. h3 {[%clk 0:01:43]}  h5 {[%clk 0:02:09]} 19. Kf2 {[%clk 0:01:42]}  Ng6 {[%clk 0:02:04]} 20. Rh1 {[%clk 0:01:40]}  Qc8 {[%clk 0:01:54]} 21. Nb5 {[%clk 0:01:35]}  g4 {[%clk 0:01:52]} 22. hxg4 {[%clk 0:01:34]}  hxg4 {[%clk 0:01:53]} 23. Rh5 {[%clk 0:01:15]}  Bf6 {[%clk 0:01:49]} 24. Qh1 {[%clk 0:01:13]}  Qd8 {[%clk 0:01:40]} 25. Ba3 {[%clk 0:00:55]}  Bh4+ {[%clk 0:01:35]} 26. Ke2 {[%clk 0:00:55]}  Kg7 {[%clk 0:01:19]} 27. Nxc7 {[%clk 0:00:39]}  Qxc7 {[%clk 0:01:18]} 28. Rxh4 {[%clk 0:00:39]}  Nxh4 {[%clk 0:01:16]} 29. Qxh4 {[%clk 0:00:39]}  Kg6 {[%clk 0:00:47]} 30. Rb1 {[%clk 0:00:32]}  Rh8 {[%clk 0:00:23]} 31. Qe7 {[%clk 0:00:32]}  Rh7 {[%clk 0:00:23]} 32. Qxd6+ {[%clk 0:00:32]}  Qxd6 {[%clk 0:00:23]} 33. Bxd6 {[%clk 0:00:33]}  Rxa4 {[%clk 0:00:22]} 34. Rxb6 {[%clk 0:00:31]}  Kf7 {[%clk 0:00:17]} 35. Bxe5 {[%clk 0:00:28]}  Rh2 {[%clk 0:00:18]} 36. Bxf4 {[%clk 0:00:28]}  Rxg2+ {[%clk 0:00:17]} 37. Ke3 {[%clk 0:00:26]}  gxf3 {[%clk 0:00:17]} 38. Kxf3 {[%clk 0:00:25]}  Bh3 {[%clk 0:00:13]} 39. e5 {[%clk 0:00:25]}  Ra3+ {[%clk 0:00:13]} 40. Ke4 {[%clk 0:00:21]}  Re2+ {[%clk 0:00:13]} 41. Kd4 {[%clk 0:00:21]}  Rf2 {[%clk 0:00:13]} 42. Rf6+ {[%clk 0:00:20]}  Kg8 {[%clk 0:00:12]} 43. Ne4 {[%clk 0:00:20]}  Rff3 {[%clk 0:00:11]} 44. Ng5 {[%clk 0:00:18]}  Rfd3+ {[%clk 0:00:12]} 45. Ke4 {[%clk 0:00:18]}  Bg2+ {[%clk 0:00:12]} 46. Kf5 {[%clk 0:00:19]}  Rdc3 {[%clk 0:00:11]} 47. Rc6 {[%clk 0:00:18]}  Ra4 {[%clk 0:00:11]} 48. Rc8+ {[%clk 0:00:15]}  Kg7 {[%clk 0:00:10]} 49. Ne6+ {[%clk 0:00:15]}  Kf7 {[%clk 0:00:09]} 50. Rc7+ {[%clk 0:00:12]}  Ke8 {[%clk 0:00:09]} 51. Bg5 {[%clk 0:00:12]}  Bh3+ {[%clk 0:00:09]} 52. Kf6 {[%clk 0:00:11]}  Bxe6 {[%clk 0:00:09]} 53. Kxe6 {[%clk 0:00:11]}  Ra6+ {[%clk 0:00:09]} 54. d6 {[%clk 0:00:11]}  Ra8 {[%clk 0:00:07]} 55. d7+ {[%clk 0:00:11]}  Kf8 {[%clk 0:00:07]} 56. Rc8+ {[%clk 0:00:12]} 1-0


[Site "https://www.chess.com"]

[Event "Titled Tuesday Blitz February 07 Early 2023"]
[White "Ambartsumova, Karina"]
[Black "Fernandez Garcia, Gumersindo"]
[WhiteFideId "4166299"]
[BlackFideId "24516740"]
[WhiteElo "2393"]
[BlackElo "2160"]
[Result "0-1"]
[Round "08"]
[TimeControl "180+2"]
[Date "2023.02.07"]
[WhiteClock "0:00:02"]
[BlackClock "0:02:06"]

1. e4 {[%clk 0:03:00]}  c5 {[%clk 0:02:57]} 2. Nf3 {[%clk 0:03:00]}  g6 {[%clk 0:02:57]} 3. d4 {[%clk 0:02:59]}  cxd4 {[%clk 0:02:58]} 4. Qxd4 {[%clk 0:02:57]}  Nf6 {[%clk 0:02:58]} 5. Nc3 {[%clk 0:02:42]}  Nc6 {[%clk 0:02:58]} 6. Qa4 {[%clk 0:02:42]}  d6 {[%clk 0:02:59]} 7. e5 {[%clk 0:02:42]}  dxe5 {[%clk 0:02:59]} 8. Nxe5 {[%clk 0:02:43]}  Bd7 {[%clk 0:03:00]} 9. Nxd7 {[%clk 0:02:43]}  Qxd7 {[%clk 0:03:01]} 10. Bb5 {[%clk 0:02:43]}  Bg7 {[%clk 0:03:01]} 11. O-O {[%clk 0:02:43]}  O-O {[%clk 0:03:00]} 12. Bg5 {[%clk 0:02:24]}  a6 {[%clk 0:02:57]} 13. Bxc6 {[%clk 0:01:56]}  Qxc6 {[%clk 0:02:58]} 14. Qxc6 {[%clk 0:01:56]}  bxc6 {[%clk 0:02:58]} 15. Rad1 {[%clk 0:01:53]}  Rab8 {[%clk 0:02:56]} 16. b3 {[%clk 0:01:52]}  h6 {[%clk 0:02:51]} 17. Bf4 {[%clk 0:01:30]}  Rbd8 {[%clk 0:02:50]} 18. Be5 {[%clk 0:01:30]}  Nd5 {[%clk 0:02:43]} 19. Bxg7 {[%clk 0:01:28]}  Kxg7 {[%clk 0:02:44]} 20. Nxd5 {[%clk 0:01:07]}  cxd5 {[%clk 0:02:43]} 21. Rd2 {[%clk 0:00:59]}  e6 {[%clk 0:02:42]} 22. Rfd1 {[%clk 0:00:58]}  Rc8 {[%clk 0:02:42]} 23. f4 {[%clk 0:00:44]}  Rc3 {[%clk 0:02:41]} 24. Re2 {[%clk 0:00:40]}  Rfc8 {[%clk 0:02:38]} 25. Rdd2 {[%clk 0:00:40]}  h5 {[%clk 0:02:37]} 26. g3 {[%clk 0:00:36]}  a5 {[%clk 0:02:37]} 27. Kg2 {[%clk 0:00:27]}  Kf6 {[%clk 0:02:29]} 28. Kf2 {[%clk 0:00:20]}  h4 {[%clk 0:02:28]} 29. g4 {[%clk 0:00:09]}  g5 {[%clk 0:02:21]} 30. fxg5+ {[%clk 0:00:07]}  Kxg5 {[%clk 0:02:21]} 31. Rd4 {[%clk 0:00:06]}  Rxc2 {[%clk 0:02:19]} 32. Ra4 {[%clk 0:00:04]}  Rxe2+ {[%clk 0:02:18]} 33. Kxe2 {[%clk 0:00:05]}  Rc2+ {[%clk 0:02:18]} 34. Kf3 {[%clk 0:00:05]}  Rxh2 {[%clk 0:02:16]} 35. Rxa5 {[%clk 0:00:05]}  Rh3+ {[%clk 0:02:16]} 36. Kf2 {[%clk 0:00:05]}  Rc3 {[%clk 0:02:12]} 37. b4 {[%clk 0:00:05]}  Kxg4 {[%clk 0:02:09]} 38. b5 {[%clk 0:00:05]}  Rc2+ {[%clk 0:02:09]} 39. Kg1 {[%clk 0:00:04]}  Rb2 {[%clk 0:02:07]} 40. a4 {[%clk 0:00:02]}  Kg3 {[%clk 0:02:06]} 41. Kf1 {[%clk 0:00:02]}  h3 {[%clk 0:02:06]} 42. Ra8 {[%clk 0:00:02]}  h2 {[%clk 0:02:06]} 43. Rg8+ {[%clk 0:00:02]}  Kf3 {[%clk 0:02:06]} 0-1


[Site "https://www.chess.com"]

[Event "Titled Tuesday Blitz February 07 Early 2023"]
[White "Skurikhin, Dmitrij"]
[Black "Tarlabasi, Emirhan"]
[WhiteFideId "4161297"]
[BlackFideId "6350275"]
[WhiteElo "2297"]
[BlackElo "2300"]
[Result "0-1"]
[Round "08"]
[TimeControl "180+2"]
[Date "2023.02.07"]
[WhiteClock "0:00:29"]
[BlackClock "0:00:43"]

1. e4 {[%clk 0:03:00]}  e6 {[%clk 0:02:52]} 2. d4 {[%clk 0:02:59]}  d5 {[%clk 0:02:53]} 3. e5 {[%clk 0:02:58]}  f5 {[%clk 0:02:51]} 4. exf6 {[%clk 0:02:50]}  Nxf6 {[%clk 0:02:49]} 5. Nf3 {[%clk 0:02:49]}  c5 {[%clk 0:02:49]} 6. c3 {[%clk 0:02:48]}  Nc6 {[%clk 0:02:49]} 7. Bd3 {[%clk 0:02:45]}  Bd6 {[%clk 0:02:44]} 8. O-O {[%clk 0:02:44]}  O-O {[%clk 0:02:44]} 9. Nbd2 {[%clk 0:02:25]}  Bd7 {[%clk 0:02:44]} 10. Re1 {[%clk 0:02:23]}  Qc7 {[%clk 0:02:38]} 11. Qe2 {[%clk 0:02:15]}  Rae8 {[%clk 0:02:37]} 12. Ne5 {[%clk 0:02:11]}  cxd4 {[%clk 0:02:35]} 13. Nxc6 {[%clk 0:02:09]}  bxc6 {[%clk 0:02:33]} 14. cxd4 {[%clk 0:02:07]}  e5 {[%clk 0:02:21]} 15. dxe5 {[%clk 0:01:59]}  Bxe5 {[%clk 0:02:07]} 16. Qf1 {[%clk 0:01:57]}  Bxh2+ {[%clk 0:01:53]} 17. Kh1 {[%clk 0:01:54]}  Ng4 {[%clk 0:01:46]} 18. Rxe8 {[%clk 0:01:51]}  Bxe8 {[%clk 0:01:31]} 19. Nf3 {[%clk 0:01:50]}  Bh5 {[%clk 0:01:19]} 20. Bg5 {[%clk 0:01:42]}  h6 {[%clk 0:01:09]} 21. Bh4 {[%clk 0:01:41]}  g5 {[%clk 0:01:08]} 22. Nd4 {[%clk 0:00:37]}  gxh4 {[%clk 0:01:02]} 23. Ne6 {[%clk 0:00:36]}  Nxf2+ {[%clk 0:00:50]} 24. Qxf2 {[%clk 0:00:34]}  Rxf2 {[%clk 0:00:51]} 25. Nxc7 {[%clk 0:00:34]}  Bxc7 {[%clk 0:00:51]} 26. Rc1 {[%clk 0:00:32]}  h3 {[%clk 0:00:43]} 27. gxh3 {[%clk 0:00:29]}  Bh2 {[%clk 0:00:43]} 0-1


[Site "https://www.chess.com"]

[Event "Titled Tuesday Blitz February 07 Early 2023"]
[White "Hirneise, Jens"]
[Black "Topalov, Aleksandar"]
[WhiteFideId "24614734"]
[BlackFideId "925659"]
[WhiteElo "2277"]
[BlackElo "2233"]
[Result "1/2-1/2"]
[Round "08"]
[TimeControl "180+2"]
[Date "2023.02.07"]
[WhiteClock "0:00:24"]
[BlackClock "0:00:30"]

1. b3 {[%clk 0:03:00]}  Nf6 {[%clk 0:02:34]} 2. Bb2 {[%clk 0:03:00]}  g6 {[%clk 0:02:34]} 3. g3 {[%clk 0:02:59]}  Bg7 {[%clk 0:02:34]} 4. Bg2 {[%clk 0:03:00]}  O-O {[%clk 0:02:34]} 5. Nf3 {[%clk 0:03:00]}  d6 {[%clk 0:02:32]} 6. d4 {[%clk 0:02:58]}  Nbd7 {[%clk 0:02:30]} 7. O-O {[%clk 0:02:58]}  e5 {[%clk 0:02:30]} 8. dxe5 {[%clk 0:02:57]}  Ng4 {[%clk 0:02:30]} 9. Nbd2 {[%clk 0:02:48]}  Ngxe5 {[%clk 0:02:30]} 10. Rb1 {[%clk 0:02:45]}  Nxf3+ {[%clk 0:02:23]} 11. Nxf3 {[%clk 0:02:46]}  Bxb2 {[%clk 0:02:22]} 12. Rxb2 {[%clk 0:02:46]}  Re8 {[%clk 0:02:20]} 13. c4 {[%clk 0:02:45]}  a5 {[%clk 0:02:18]} 14. Rd2 {[%clk 0:02:43]}  Nc5 {[%clk 0:02:18]} 15. Nd4 {[%clk 0:02:42]}  Bd7 {[%clk 0:02:17]} 16. e3 {[%clk 0:02:33]}  Qf6 {[%clk 0:02:10]} 17. Qf3 {[%clk 0:02:32]}  Qxf3 {[%clk 0:02:06]} 18. Bxf3 {[%clk 0:02:33]}  Ne4 {[%clk 0:02:06]} 19. Bxe4 {[%clk 0:02:29]}  Rxe4 {[%clk 0:02:05]} 20. Ne2 {[%clk 0:02:30]}  Bc6 {[%clk 0:02:00]} 21. Nc3 {[%clk 0:02:29]}  Re5 {[%clk 0:01:57]} 22. Rfd1 {[%clk 0:02:19]}  Rc5 {[%clk 0:01:41]} 23. Rd4 {[%clk 0:02:14]}  Re8 {[%clk 0:01:38]} 24. e4 {[%clk 0:02:10]}  Kg7 {[%clk 0:01:26]} 25. f3 {[%clk 0:01:48]}  b6 {[%clk 0:01:21]} 26. Kf2 {[%clk 0:01:48]}  f5 {[%clk 0:01:16]} 27. Re1 {[%clk 0:01:45]}  Kf6 {[%clk 0:01:07]} 28. a4 {[%clk 0:01:41]}  fxe4 {[%clk 0:01:02]} 29. Nxe4+ {[%clk 0:01:40]}  Bxe4 {[%clk 0:01:02]} 30. Rdxe4 {[%clk 0:01:40]}  Rce5 {[%clk 0:01:02]} 31. Rxe5 {[%clk 0:01:37]}  Rxe5 {[%clk 0:00:45]} 32. Rd1 {[%clk 0:01:37]}  Ke7 {[%clk 0:00:34]} 33. f4 {[%clk 0:01:33]}  Rc5 {[%clk 0:00:31]} 34. Kf3 {[%clk 0:01:28]}  c6 {[%clk 0:00:32]} 35. Rd3 {[%clk 0:01:09]}  b5 {[%clk 0:00:31]} 36. cxb5 {[%clk 0:01:06]}  cxb5 {[%clk 0:00:32]} 37. axb5 {[%clk 0:01:05]}  Rxb5 {[%clk 0:00:31]} 38. g4 {[%clk 0:01:00]}  h5 {[%clk 0:00:29]} 39. h3 {[%clk 0:00:56]}  hxg4+ {[%clk 0:00:29]} 40. hxg4 {[%clk 0:00:54]}  Rb4 {[%clk 0:00:29]} 41. Kg3 {[%clk 0:00:50]}  a4 {[%clk 0:00:29]} 42. bxa4 {[%clk 0:00:50]}  Rxa4 {[%clk 0:00:30]} 43. Re3+ {[%clk 0:00:37]}  Kf7 {[%clk 0:00:29]} 44. Rd3 {[%clk 0:00:35]}  Ke7 {[%clk 0:00:29]} 45. Re3+ {[%clk 0:00:29]}  Kf7 {[%clk 0:00:30]} 46. Rd3 {[%clk 0:00:24]}  Ke7 {[%clk 0:00:30]} 1/2-1/2


[Site "https://www.chess.com"]

[Event "Titled Tuesday Blitz February 07 Early 2023"]
[White "Tymrakiewicz, Rafal"]
[Black "Tillyaev, Ulugbek"]
[WhiteFideId "1108832"]
[BlackFideId "14202441"]
[WhiteElo "2144"]
[BlackElo "2287"]
[Result "0-1"]
[Round "08"]
[TimeControl "180+2"]
[Date "2023.02.07"]
[WhiteClock "0:00:04"]
[BlackClock "0:00:57"]

1. d4 {[%clk 0:02:53]}  e6 {[%clk 0:02:59]} 2. Nf3 {[%clk 0:02:50]}  b6 {[%clk 0:02:58]} 3. e4 {[%clk 0:02:49]}  Bb7 {[%clk 0:02:57]} 4. Bd3 {[%clk 0:02:50]}  Nf6 {[%clk 0:02:47]} 5. Nbd2 {[%clk 0:02:50]}  d5 {[%clk 0:02:46]} 6. e5 {[%clk 0:02:50]}  Nfd7 {[%clk 0:02:45]} 7. Qe2 {[%clk 0:02:47]}  c5 {[%clk 0:02:44]} 8. c3 {[%clk 0:02:47]}  Be7 {[%clk 0:02:44]} 9. a3 {[%clk 0:02:47]}  a6 {[%clk 0:02:44]} 10. b4 {[%clk 0:02:45]}  Qc7 {[%clk 0:02:42]} 11. O-O {[%clk 0:02:44]}  Nc6 {[%clk 0:02:41]} 12. Re1 {[%clk 0:02:29]}  g5 {[%clk 0:02:35]} 13. h3 {[%clk 0:01:38]}  h5 {[%clk 0:02:34]} 14. g4 {[%clk 0:01:36]}  hxg4 {[%clk 0:02:33]} 15. hxg4 {[%clk 0:01:36]}  c4 {[%clk 0:02:30]} 16. Bc2 {[%clk 0:01:35]}  O-O-O {[%clk 0:02:31]} 17. Nf1 {[%clk 0:01:34]}  Rdg8 {[%clk 0:02:30]} 18. Ng3 {[%clk 0:01:24]}  Kb8 {[%clk 0:02:28]} 19. a4 {[%clk 0:01:18]}  Nf8 {[%clk 0:02:24]} 20. Kg2 {[%clk 0:01:11]}  Ng6 {[%clk 0:02:19]} 21. Bxg6 {[%clk 0:01:10]}  Rxg6 {[%clk 0:02:17]} 22. Rh1 {[%clk 0:01:08]}  Rxh1 {[%clk 0:02:16]} 23. Nxh1 {[%clk 0:01:09]}  f5 {[%clk 0:02:01]} 24. Ng3 {[%clk 0:01:04]}  fxg4 {[%clk 0:01:55]} 25. Nh2 {[%clk 0:01:00]}  Bxb4 {[%clk 0:01:55]} 26. Bd2 {[%clk 0:00:53]}  Be7 {[%clk 0:01:46]} 27. Nxg4 {[%clk 0:00:53]}  Rg8 {[%clk 0:01:39]} 28. f3 {[%clk 0:00:52]}  Bd8 {[%clk 0:01:37]} 29. Nh5 {[%clk 0:00:51]}  Rh8 {[%clk 0:01:31]} 30. Nhf6 {[%clk 0:00:48]}  Ne7 {[%clk 0:01:29]} 31. Rh1 {[%clk 0:00:41]}  Rxh1 {[%clk 0:01:28]} 32. Kxh1 {[%clk 0:00:42]}  Nf5 {[%clk 0:01:28]} 33. Kg1 {[%clk 0:00:34]}  b5 {[%clk 0:01:28]} 34. axb5 {[%clk 0:00:33]}  axb5 {[%clk 0:01:29]} 35. Bxg5 {[%clk 0:00:31]}  Qg7 {[%clk 0:01:28]} 36. Be3 {[%clk 0:00:22]}  Bb6 {[%clk 0:01:23]} 37. Bf2 {[%clk 0:00:20]}  b4 {[%clk 0:01:22]} 38. Qb2 {[%clk 0:00:17]}  b3 {[%clk 0:01:21]} 39. Qa3 {[%clk 0:00:17]}  Qe7 {[%clk 0:01:15]} 40. Qb2 {[%clk 0:00:05]}  Ba5 {[%clk 0:01:14]} 41. Be1 {[%clk 0:00:04]}  Qc7 {[%clk 0:01:11]} 42. Kf2 {[%clk 0:00:04]}  Qc6 {[%clk 0:01:09]} 43. Ne3 {[%clk 0:00:03]}  Nxe3 {[%clk 0:01:07]} 44. Kxe3 {[%clk 0:00:04]}  Qa4 {[%clk 0:01:08]} 45. Bd2 {[%clk 0:00:05]}  Qa2 {[%clk 0:01:07]} 46. Bc1 {[%clk 0:00:06]}  Ka7 {[%clk 0:01:03]} 47. Nd7 {[%clk 0:00:06]}  Bc8 {[%clk 0:01:01]} 48. Nc5 {[%clk 0:00:06]}  Bb6 {[%clk 0:01:01]} 49. Qxa2+ {[%clk 0:00:04]}  bxa2 {[%clk 0:01:01]} 50. Bb2 {[%clk 0:00:05]}  Kb8 {[%clk 0:00:59]} 51. Na4 {[%clk 0:00:04]}  Ba7 {[%clk 0:00:58]} 52. Nc5 {[%clk 0:00:04]}  Kc7 {[%clk 0:00:57]} 53. f4 {[%clk 0:00:04]}  Kc6 {[%clk 0:00:57]} 0-1


[Site "https://www.chess.com"]